fUSD/lending_fUSD_20250720
["ID","MTS","AMOUNT","RATE_DAILY","PERIOD"]
[373592041,1753055479497,-1109.08,0.00019287,2]
[373592042,1753055479507,-480.0,0.00019287,2]
[373592043,1753055479517,-480.0,0.00019287,2]
[373592044,1753055479526,-480.0,0.00019287,2]
[373592045,1753055479536,-7882.05,0.00019287,2]
[373592046,1753055479546,-825.59,0.00019287,2]
[373592047,1753055479556,-683.37,0.00019287,2]
[373592048,1753055479566,-508.0,0.00019288,2]
[373592049,1753055479575,-150.0,0.00019289,2]
[373592050,1753055479585,-170.0,0.0001929,2]
[373592051,1753055479595,-150.0,0.0001929,2]
[373592052,1753055479604,-157.60380265,0.0001929,2]
[373592053,1753055479613,-284.1836836,0.00019297,2]
[373592054,1753055479623,-2802.19286535,0.00019297,2]
[373592055,1753055479632,-1017.71714839,0.00019297,2]
[373592056,1753055479643,-232.03690326,0.00019297,2]
[373592057,1753055479652,-1949.73915986,0.00019297,2]
[373592058,1753055479662,-150.0,0.00019305,2]
[373592059,1753055479671,-600.0,0.00019321,2]
[373592060,1753055479681,-305.02,0.00019321,2]
[373592061,1753055479691,-500.0,0.00019333,2]
[373592062,1753055479701,-7681.20591386,0.00019333,2]
[373592063,1753055479711,-600.0,0.00019333,2]
[373592064,1753055479720,-600.0,0.00019367,2]
[373592065,1753055479730,-305.02,0.00019367,2]
[373592066,1753055479740,-965.0,0.00019373,2]
[373592067,1753055479753,-500.0,0.00019373,2]
[373592068,1753055479764,-500.0,0.00019396,2]
[373592069,1753055479774,-500.0,0.00019396,2]
[373592070,1753055479783,-500.0,0.00019396,2]
[373592071,1753055479793,-500.0,0.00019396,2]
[373592072,1753055479803,-500.0,0.00019396,2]
[373592073,1753055479813,-305.51577251,0.00019396,2]
[373592074,1753055479822,-1161.04,0.00019396,2]
[373592075,1753055479832,-1161.04,0.00019396,2]
[373592076,1753055479842,-1161.04,0.00019396,2]
[373592077,1753055479851,-152.181321,0.00019397,2]
[373592078,1753055479861,-155.093728,0.00019397,2]
[373592079,1753055479871,-906.747034,0.00019397,2]
[373592080,1753055479880,-882.095576,0.00019397,2]
[373592081,1753055479890,-842.356741,0.00019397,2]
[373592082,1753055479899,-480.0,0.00019397,2]
[373592083,1753055479995,-480.0,0.00019397,2]
[373592084,1753055480005,-480.0,0.00019397,2]
[373592085,1753055480014,-480.0,0.00019397,2]
[373592086,1753055480024,-480.0,0.00019397,2]
[373592087,1753055480033,-480.0,0.00019397,2]
[373592088,1753055480042,-480.0,0.00019397,2]
[373592089,1753055480051,-460.0,0.00019397,2]
[373592090,1753055480060,-377.46132663,0.00019397,2]
[373592091,1753055480069,-1766.02,0.00019397,2]
[373592092,1753055480079,-480.0,0.00019397,2]
[373592093,1753055480091,-480.0,0.00019397,2]
[373592094,1753055480100,-480.0,0.00019397,2]
[373592095,1753055480110,-480.0,0.00019397,2]
[373592096,1753055480119,-480.0,0.00019397,2]
[373592097,1753055480128,-480.0,0.00019397,2]
[373592098,1753055480137,-480.0,0.00019397,2]
[373592099,1753055480146,-480.0,0.00019397,2]
[373592100,1753055480154,-480.0,0.00019397,2]
[373592101,1753055480164,-480.0,0.00019397,2]
[373592102,1753055480173,-480.0,0.00019397,2]
[373592103,1753055480182,-480.0,0.00019397,2]
[373592104,1753055480192,-480.0,0.00019397,2]
[373592105,1753055480202,-480.0,0.00019397,2]
[373592106,1753055480211,-480.0,0.00019397,2]
[373592107,1753055480220,-480.0,0.00019397,2]
[373592108,1753055480229,-480.0,0.00019397,2]
[373592109,1753055480238,-480.0,0.00019397,2]
[373592110,1753055480247,-480.0,0.00019397,2]
[373592111,1753055480256,-250.47251715,0.00019397,2]
[373592112,1753055480265,-443.43320069,0.00019397,2]
[373592113,1753055480274,-528.36310027,0.00019397,2]
[373592114,1753055480283,-480.0,0.00019397,2]
[373592115,1753055480291,-480.0,0.00019397,2]
[373592116,1753055480300,-480.0,0.00019397,2]
[373592117,1753055480310,-480.0,0.00019397,2]
[373592118,1753055480319,-355.26755261,0.00019397,2]
[373592119,1753055480328,-440.0,0.00019397,2]
[373592120,1753055480337,-480.0,0.00019397,2]
[373592121,1753055480346,-480.0,0.00019397,2]
[373592122,1753055480355,-480.0,0.00019397,2]
[373592123,1753055480364,-480.0,0.00019397,2]
[373592124,1753055480373,-480.0,0.00019397,2]
[373592125,1753055480383,-480.0,0.00019397,2]
[373592126,1753055480392,-480.0,0.00019397,2]
[373592127,1753055480401,-480.0,0.00019397,2]
[373592128,1753055480411,-480.0,0.00019397,2]
[373592129,1753055480420,-480.0,0.00019397,2]
[373592130,1753055480429,-480.0,0.00019397,2]
[373592131,1753055480438,-480.0,0.00019397,2]
[373592132,1753055480447,-480.0,0.00019397,2]
[373592133,1753055480456,-550.07,0.00019397,2]
[373592134,1753055480465,-660.38,0.00019397,2]
[373592135,1753055480474,-480.0,0.00019397,2]
[373592136,1753055480484,-480.0,0.00019397,2]
[373592137,1753055480494,-480.0,0.00019397,2]
[373592138,1753055480503,-480.0,0.00019397,2]
[373592139,1753055480512,-725.02,0.00019397,2]
[373592140,1753055480522,-480.0,0.00019397,2]
[373592141,1753055480531,-480.0,0.00019397,2]
[373592142,1753055480540,-565.28,0.00019397,2]
[373592143,1753055480552,-480.0,0.00019397,2]
[373592144,1753055480561,-480.0,0.00019397,2]
[373592145,1753055480570,-480.0,0.00019397,2]
[373592146,1753055480579,-480.0,0.00019397,2]
[373592147,1753055480589,-963.53,0.00019397,2]
[373592148,1753055480598,-480.0,0.00019397,2]
[373592149,1753055480608,-480.0,0.00019397,2]
[373592150,1753055480617,-337.32016754,0.00019397,2]
[373592151,1753055480626,-480.0,0.00019397,2]
[373592152,1753055480636,-480.0,0.00019397,2]
[373592153,1753055480645,-480.0,0.00019397,2]
[373592154,1753055480654,-480.0,0.00019397,2]
[373592155,1753055480664,-480.0,0.00019397,2]
[373592156,1753055480673,-901.55,0.00019397,2]
[373592157,1753055480683,-480.0,0.00019397,2]
[373592158,1753055480693,-495.1634636,0.00019397,2]
[373592159,1753055480703,-491.72331485,0.00019397,2]
[373592160,1753055480713,-257.28,0.00019397,2]
[373592161,1753055480722,-480.0,0.00019397,2]
[373592162,1753055480732,-480.0,0.00019397,2]
[373592163,1753055480743,-704.94,0.00019397,2]
[373592164,1753055480755,-561.37,0.00019397,2]
[373592165,1753055480765,-480.0,0.00019397,2]
[373592166,1753055480774,-480.0,0.00019397,2]
[373592167,1753055480784,-480.0,0.00019397,2]
[373592168,1753055480795,-431.43595312,0.00019397,2]
[373592169,1753055480804,-534.06,0.00019397,2]
[373592170,1753055480814,-480.0,0.00019397,2]
[373592171,1753055480823,-480.0,0.00019397,2]
[373592172,1753055480832,-480.0,0.00019397,2]
[373592173,1753055480841,-480.0,0.00019397,2]
[373592174,1753055480851,-772.47,0.00019397,2]
[373592175,1753055480860,-954.23,0.00019397,2]
[373592176,1753055480869,-1097.85,0.00019397,2]
[373592177,1753055480878,-1458.93,0.00019397,2]
[373592178,1753055480887,-480.0,0.00019397,2]
[373592179,1753055480896,-981.72,0.00019397,2]
[373592180,1753055480905,-481.58,0.00019397,2]
[373592181,1753055480914,-480.0,0.00019397,2]
[373592182,1753055480922,-480.0,0.00019397,2]
[373592183,1753055480932,-739.84,0.00019397,2]
[373592184,1753055480941,-480.0,0.00019397,2]
[373592185,1753055480951,-360.0,0.00019397,2]
[373592186,1753055480960,-637.76,0.00019397,2]
[373592187,1753055480969,-480.0,0.00019397,2]
[373592188,1753055480978,-480.0,0.00019397,2]
[373592189,1753055480987,-660.09,0.00019397,2]
[373592190,1753055480996,-358.92434055,0.00019397,2]
[373592191,1753055481005,-1056.59,0.00019397,2]
[373592192,1753055481014,-480.0,0.00019397,2]
[373592193,1753055481023,-480.0,0.00019397,2]
[373592194,1753055481032,-480.0,0.00019397,2]
[373592195,1753055481041,-623.51939412,0.00019397,2]
[373592196,1753055481053,-480.0,0.00019397,2]
[373592197,1753055481062,-1177.27,0.00019397,2]
[373592198,1753055481071,-1042.68,0.00019397,2]
[373592199,1753055481080,-210.26256788,0.00019397,2]
[373592200,1753055481088,-512.59,0.00019397,2]
[373592201,1753055481098,-480.0,0.00019397,2]
[373592202,1753055481107,-480.0,0.00019397,2]
[373592203,1753055481116,-1082.73,0.00019397,2]
[373592204,1753055481125,-480.0,0.00019397,2]
[373592205,1753055481135,-480.0,0.00019397,2]
[373592206,1753055481144,-618.4,0.00019397,2]
[373592207,1753055481153,-480.0,0.00019397,2]
[373592208,1753055481162,-1150.76,0.00019397,2]
[373592209,1753055481171,-480.0,0.00019397,2]
[373592210,1753055481180,-865.93,0.00019397,2]
[373592211,1753055481190,-725.55,0.00019397,2]
[373592212,1753055481199,-480.0,0.00019397,2]
[373592213,1753055481209,-480.0,0.00019397,2]
[373592214,1753055481219,-480.0,0.00019397,2]
[373592215,1753055481228,-480.0,0.00019397,2]
[373592216,1753055481237,-480.0,0.00019397,2]
[373592217,1753055481246,-480.0,0.00019397,2]
[373592218,1753055481255,-749.26,0.00019397,2]
[373592219,1753055481265,-1572.15,0.00019397,2]
[373592220,1753055481274,-2293.85,0.00019397,2]
[373592221,1753055481283,-480.0,0.00019397,2]
[373592222,1753055481293,-480.0,0.00019397,2]
[373592223,1753055481302,-587.44,0.00019397,2]
[373592224,1753055481311,-865.65,0.00019397,2]
[373592225,1753055481320,-1259.0,0.00019397,2]
[373592226,1753055481329,-1033.02,0.00019397,2]
[373592227,1753055481338,-601.75,0.00019397,2]
[373592228,1753055481347,-953.1,0.00019397,2]
[373592229,1753055481355,-1336.39,0.00019397,2]
[373592230,1753055481365,-850.35,0.00019397,2]
[373592231,1753055481374,-917.93,0.00019397,2]
[373592232,1753055481384,-1757.42,0.00019397,2]
[373592233,1753055481393,-480.0,0.00019397,2]
[373592234,1753055481403,-480.0,0.00019397,2]
[373592235,1753055481412,-480.0,0.00019397,2]
[373592236,1753055481421,-480.0,0.00019397,2]
[373592237,1753055481431,-480.0,0.00019397,2]
[373592238,1753055481441,-480.0,0.00019397,2]
[373592239,1753055481450,-862.39,0.00019397,2]
[373592240,1753055481459,-480.0,0.00019397,2]
[373592241,1753055481469,-480.0,0.00019397,2]
[373592242,1753055481479,-345.23753716,0.00019397,2]
[373592243,1753055481488,-480.0,0.00019397,2]
[373592244,1753055481498,-480.0,0.00019397,2]
[373592245,1753055481507,-658.91,0.00019397,2]
[373592246,1753055481517,-480.0,0.00019397,2]
[373592247,1753055481526,-480.0,0.00019397,2]
[373592248,1753055481535,-609.01,0.00019397,2]
[373592249,1753055481547,-480.0,0.00019397,2]
[373592250,1753055481556,-480.0,0.00019397,2]
[373592251,1753055481565,-826.89,0.00019397,2]
[373592252,1753055481575,-3180.24,0.00019397,2]
[373592253,1753055481584,-480.0,0.00019397,2]
[373592254,1753055481594,-1373.17,0.00019397,2]
[373592255,1753055481604,-4973.5,0.00019397,2]
[373592256,1753055481613,-480.0,0.00019397,2]
[373592257,1753055481622,-480.0,0.00019397,2]
[373592258,1753055481632,-480.0,0.00019397,2]
[373592259,1753055481641,-766.75,0.00019397,2]
[373592260,1753055481650,-480.0,0.00019397,2]
[373592261,1753055481660,-480.0,0.00019397,2]
[373592262,1753055481669,-1144.59,0.00019397,2]
[373592263,1753055481678,-1350.41,0.00019397,2]
[373592264,1753055481688,-480.0,0.00019397,2]
[373592265,1753055481697,-480.0,0.00019397,2]
[373592266,1753055481708,-1658.82,0.00019397,2]
[373592267,1753055481717,-614.53,0.00019397,2]
[373592268,1753055481727,-1190.75,0.00019397,2]
[373592269,1753055481737,-1307.47,0.00019397,2]
[373592270,1753055481748,-480.0,0.00019397,2]
[373592271,1753055481760,-1450.15,0.00019397,2]
[373592272,1753055481770,-480.0,0.00019397,2]
[373592273,1753055481779,-480.0,0.00019397,2]
[373592274,1753055481788,-480.0,0.00019397,2]
[373592275,1753055481801,-514.49099399,0.00019397,2]
[373592276,1753055481810,-1068.24,0.00019397,2]
[373592277,1753055481819,-850.85,0.00019397,2]
[373592278,1753055481830,-480.0,0.00019397,2]
[373592279,1753055481840,-480.0,0.00019397,2]
[373592280,1753055481849,-2195.9,0.00019397,2]
[373592281,1753055481859,-480.0,0.00019397,2]
[373592282,1753055481868,-671.94,0.00019397,2]
[373592283,1753055481878,-480.0,0.00019397,2]
[373592284,1753055481888,-480.0,0.00019397,2]
[373592285,1753055481898,-480.0,0.00019397,2]
[373592286,1753055481907,-245.23398581,0.00019397,2]
[373592287,1753055481918,-611.63,0.00019397,2]
[373592288,1753055481927,-741.55,0.00019397,2]
[373592289,1753055481936,-480.0,0.00019397,2]
[373592290,1753055481946,-1191.53,0.00019397,2]
[373592291,1753055481955,-480.0,0.00019397,2]
[373592292,1753055481965,-480.0,0.00019397,2]
[373592293,1753055481975,-566.65,0.00019397,2]
[373592294,1753055481984,-480.0,0.00019397,2]
[373592295,1753055481993,-480.0,0.00019397,2]
[373592296,1753055482002,-996.3,0.00019397,2]
[373592297,1753055482011,-566.48,0.00019397,2]
[373592298,1753055482020,-536.91102998,0.00019397,2]
[373592299,1753055482029,-480.0,0.00019397,2]
[373592300,1753055482038,-480.0,0.00019397,2]
[373592301,1753055482049,-480.0,0.00019397,2]
[373592302,1753055482059,-480.0,0.00019397,2]
[373592303,1753055482067,-480.0,0.00019397,2]
[373592304,1753055482076,-517.45,0.00019397,2]
[373592305,1753055482086,-1698.74,0.00019397,2]
[373592306,1753055482096,-2386.97,0.00019397,2]
[373592307,1753055482105,-3864.18,0.00019397,2]
[373592308,1753055482114,-480.0,0.00019397,2]
[373592309,1753055482123,-8107.22,0.00019397,2]
[373592310,1753055482132,-480.0,0.00019397,2]
[373592311,1753055482141,-480.0,0.00019397,2]
[373592312,1753055482150,-480.0,0.00019397,2]
[373592313,1753055482159,-945.51,0.00019397,2]
[373592314,1753055482168,-663.89,0.00019397,2]
[373592315,1753055482178,-480.0,0.00019397,2]
[373592316,1753055482187,-1066.56,0.00019397,2]
[373592317,1753055482196,-513.16,0.00019397,2]
[373592318,1753055482205,-480.0,0.00019397,2]
[373592319,1753055482214,-460.0,0.00019397,2]
[373592320,1753055482223,-480.0,0.00019397,2]
[373592321,1753055482233,-480.0,0.00019397,2]
[373592322,1753055482242,-580.80405262,0.00019397,2]
[373592323,1753055482251,-530.44,0.00019397,2]
[373592324,1753055482260,-846.49,0.00019397,2]
[373592325,1753055482270,-4546.29,0.00019397,2]
[373592326,1753055482279,-1554.92,0.00019397,2]
[373592327,1753055482288,-480.0,0.00019397,2]
[373592328,1753055482299,-800.06,0.00019397,2]
[373592329,1753055482308,-480.0,0.00019397,2]
[373592330,1753055482318,-729.2,0.00019397,2]
[373592331,1753055482328,-480.0,0.00019397,2]
[373592332,1753055482337,-1859.83,0.00019397,2]
[373592333,1753055482347,-1133.03,0.00019397,2]
[373592334,1753055482356,-888.11,0.00019397,2]
[373592335,1753055482365,-480.0,0.00019397,2]
[373592336,1753055482374,-548.54,0.00019397,2]
[373592337,1753055482383,-480.0,0.00019397,2]
[373592338,1753055482393,-775.2,0.00019397,2]
[373592339,1753055482402,-1073.63,0.00019397,2]
[373592340,1753055482412,-480.0,0.00019397,2]
[373592341,1753055482422,-886.56,0.00019397,2]
[373592342,1753055482431,-480.0,0.00019397,2]
[373592343,1753055482440,-2149.1,0.00019397,2]
[373592344,1753055482450,-480.0,0.00019397,2]
[373592345,1753055482460,-3977.95,0.00019397,2]
[373592346,1753055482469,-480.0,0.00019397,2]
[373592347,1753055482479,-927.74,0.00019397,2]
[373592348,1753055482488,-974.5,0.00019397,2]
[373592349,1753055482498,-504.05,0.00019397,2]
[373592350,1753055482507,-480.0,0.00019397,2]
[373592351,1753055482517,-480.0,0.00019397,2]
[373592352,1753055482527,-562.45,0.00019397,2]
[373592353,1753055482536,-874.56,0.00019397,2]
[373592354,1753055482547,-480.0,0.00019397,2]
[373592355,1753055482556,-480.0,0.00019397,2]
[373592356,1753055482565,-480.0,0.00019397,2]
[373592357,1753055482575,-1406.05,0.00019397,2]
[373592358,1753055482584,-1900.03,0.00019397,2]
[373592359,1753055482593,-480.0,0.00019397,2]
[373592360,1753055482603,-480.0,0.00019397,2]
[373592361,1753055482612,-2845.77,0.00019397,2]
[373592362,1753055482622,-480.0,0.00019397,2]
[373592363,1753055482631,-496.31,0.00019397,2]
[373592364,1753055482640,-480.0,0.00019397,2]
[373592365,1753055482649,-440.0,0.00019397,2]
[373592366,1753055482659,-480.0,0.00019397,2]
[373592367,1753055482668,-746.26,0.00019397,2]
[373592368,1753055482678,-480.0,0.00019397,2]
[373592369,1753055482687,-480.0,0.00019397,2]
[373592370,1753055482695,-480.0,0.00019397,2]
[373592371,1753055482705,-480.0,0.00019397,2]
[373592372,1753055482714,-878.11,0.00019397,2]
[373592373,1753055482723,-480.0,0.00019397,2]
[373592374,1753055482732,-480.0,0.00019397,2]
[373592375,1753055482741,-480.0,0.00019397,2]
[373592376,1753055482754,-480.0,0.00019397,2]
[373592377,1753055482763,-740.16,0.00019397,2]
[373592378,1753055482773,-480.0,0.00019397,2]
[373592379,1753055482782,-787.48,0.00019397,2]
[373592380,1753055482792,-480.0,0.00019397,2]
[373592381,1753055482802,-556.69,0.00019397,2]
[373592382,1753055482812,-480.0,0.00019397,2]
[373592383,1753055482821,-480.0,0.00019397,2]
[373592384,1753055482830,-1336.05,0.00019397,2]
[373592385,1753055482839,-480.0,0.00019397,2]
[373592386,1753055482849,-1705.21,0.00019397,2]
[373592387,1753055482857,-754.23,0.00019397,2]
[373592388,1753055482866,-1341.37,0.00019397,2]
[373592389,1753055482875,-1712.3,0.00019397,2]
[373592390,1753055482885,-480.0,0.00019397,2]
[373592391,1753055482894,-775.44,0.00019397,2]
[373592392,1753055482903,-480.0,0.00019397,2]
[373592393,1753055482913,-480.0,0.00019397,2]
[373592394,1753055482922,-480.0,0.00019397,2]
[373592395,1753055482932,-480.0,0.00019397,2]
[373592396,1753055482941,-9042.14,0.00019397,2]
[373592397,1753055482950,-1140.08,0.00019397,2]
[373592398,1753055482959,-579.3,0.00019397,2]
[373592399,1753055482969,-799.74,0.00019397,2]
[373592400,1753055482978,-480.0,0.00019397,2]
[373592401,1753055482987,-480.0,0.00019397,2]
[373592402,1753055482996,-480.0,0.00019397,2]
[373592403,1753055483006,-480.0,0.00019397,2]
[373592404,1753055483014,-480.0,0.00019397,2]
[373592405,1753055483024,-677.35,0.00019397,2]
[373592406,1753055483033,-734.28,0.00019397,2]
[373592407,1753055483042,-706.59,0.00019397,2]
[373592408,1753055483054,-842.64,0.00019397,2]
[373592409,1753055483063,-480.0,0.00019397,2]
[373592410,1753055483072,-6146.34,0.00019397,2]
[373592411,1753055483081,-4993.51,0.00019397,2]
[373592412,1753055483091,-480.0,0.00019397,2]
[373592413,1753055483100,-480.0,0.00019397,2]
[373592414,1753055483109,-1566.11,0.00019397,2]
[373592415,1753055483119,-482.32,0.00019397,2]
[373592416,1753055483128,-5552.39,0.00019397,2]
[373592417,1753055483141,-739.01,0.00019397,2]
[373592418,1753055483151,-480.0,0.00019397,2]
[373592419,1753055483160,-480.0,0.00019397,2]
[373592420,1753055483170,-641.48,0.00019397,2]
[373592421,1753055483179,-480.0,0.00019397,2]
[373592422,1753055483188,-480.0,0.00019397,2]
[373592423,1753055483197,-480.0,0.00019397,2]
[373592424,1753055483206,-480.0,0.00019397,2]
[373592425,1753055483215,-480.0,0.00019397,2]
[373592426,1753055483225,-496.3,0.00019397,2]
[373592427,1753055483234,-480.0,0.00019397,2]
[373592428,1753055483243,-570.59,0.00019397,2]
[373592429,1753055483253,-480.0,0.00019397,2]
[373592430,1753055483262,-360.0,0.00019397,2]
[373592431,1753055483271,-1082.49,0.00019397,2]
[373592432,1753055483280,-480.0,0.00019397,2]
[373592433,1753055483289,-480.0,0.00019397,2]
[373592434,1753055483299,-2668.7,0.00019397,2]
[373592435,1753055483308,-480.0,0.00019397,2]
[373592436,1753055483318,-754.25,0.00019397,2]
[373592437,1753055483328,-601.28,0.00019397,2]
[373592438,1753055483337,-480.0,0.00019397,2]
[373592439,1753055483347,-3251.3,0.00019397,2]
[373592440,1753055483357,-480.0,0.00019397,2]
[373592441,1753055483367,-1368.15,0.00019397,2]
[373592442,1753055483376,-480.0,0.00019397,2]
[373592443,1753055483386,-1027.05,0.00019397,2]
[373592444,1753055483396,-601.4,0.00019397,2]
[373592445,1753055483405,-480.0,0.00019397,2]
[373592446,1753055483415,-480.0,0.00019397,2]
[373592447,1753055483424,-2641.79,0.00019397,2]
[373592448,1753055483434,-480.0,0.00019397,2]
[373592449,1753055483443,-480.0,0.00019397,2]
[373592450,1753055483452,-1818.69,0.00019397,2]
[373592451,1753055483462,-500.0,0.00019397,2]
[373592452,1753055483471,-2500.89,0.00019397,2]
[373592453,1753055483480,-480.0,0.00019397,2]
[373592454,1753055483491,-177.02,0.00019397,2]
[373592455,1753055483500,-2805.44,0.00019397,2]
[373592456,1753055483510,-480.0,0.00019397,2]
[373592457,1753055483520,-480.0,0.00019397,2]
[373592458,1753055483529,-517.96,0.00019397,2]
[373592459,1753055483538,-1372.51,0.00019397,2]
[373592460,1753055483550,-480.0,0.00019397,2]
[373592461,1753055483559,-870.51,0.00019397,2]
[373592462,1753055483569,-480.0,0.00019397,2]
[373592463,1753055483579,-480.0,0.00019397,2]
[373592464,1753055483589,-404.05192976,0.00019397,2]
[373592465,1753055483619,-75.94807024,0.00019397,2]
[373592466,1753055483629,-480.0,0.00019397,2]
[373592467,1753055483639,-480.0,0.00019397,2]
[373592468,1753055483648,-480.0,0.00019397,2]
[373592469,1753055483658,-1482.94,0.00019397,2]
[373592470,1753055483667,-2642.36,0.00019397,2]
[373592471,1753055483677,-1398.84233611,0.00019397,2]
[373592472,1753055483701,-500.0,0.00017533,2]
[373592473,1753055483713,-184.39766389,0.00019397,2]
[373592474,1753055483723,-5286.42,0.00019397,2]
[373592475,1753055483733,-983.96,0.00019397,2]
[373592476,1753055483744,-538.34,0.00019397,2]
[373592477,1753055483758,-480.0,0.00019397,2]
[373592478,1753055483768,-557.86673563,0.00019397,2]
[373592479,1753055483778,-480.0,0.00019397,2]
[373592480,1753055483788,-480.0,0.00019397,2]
[373592481,1753055483800,-511.62,0.00019397,2]
[373592482,1753055483810,-1310.87,0.00019397,2]
[373592483,1753055483820,-480.0,0.00019397,2]
[373592484,1753055483830,-300.0,0.00019397,2]
[373592485,1753055483839,-733.45,0.00019397,2]
[373592486,1753055483850,-480.0,0.00019397,2]
[373592487,1753055483860,-480.0,0.00019397,2]
[373592488,1753055483870,-480.0,0.00019397,2]
[373592489,1753055483880,-480.0,0.00019397,2]
[373592490,1753055483890,-828.32,0.00019397,2]
[373592491,1753055483900,-554.03,0.00019397,2]
[373592492,1753055483910,-1137.53,0.00019397,2]
[373592493,1753055483919,-586.57,0.00019397,2]
[373592494,1753055483929,-480.0,0.00019397,2]
[373592495,1753055483939,-480.0,0.00019397,2]
[373592496,1753055483948,-2504.7,0.00019397,2]
[373592497,1753055483958,-6508.21,0.00019397,2]
[373592498,1753055483968,-1019.29,0.00019397,2]
[373592499,1753055483981,-480.0,0.00019397,2]
[373592500,1753055483992,-480.0,0.00019397,2]
[373592501,1753055484003,-2416.16,0.00019397,2]
[373592502,1753055484013,-480.0,0.00019397,2]
[373592503,1753055484024,-400.57,0.00019397,2]
[373592504,1753055484035,-404.229747,0.00019397,2]
[373592505,1753055484045,-949.94,0.00019397,2]
[373592506,1753055484055,-2180.91,0.00019397,2]
[373592507,1753055484064,-280.0,0.00019397,2]
[373592508,1753055484074,-1638.17,0.00019397,2]
[373592509,1753055484085,-594.19,0.00019397,2]
[373592510,1753055484096,-480.0,0.00019397,2]
[373592511,1753055484106,-669.13,0.00019397,2]
[373592512,1753055484117,-480.0,0.00019397,2]
[373592513,1753055484128,-489.3,0.00019397,2]
[373592514,1753055484140,-480.0,0.00019397,2]
[373592515,1753055484149,-6204.9,0.00019397,2]
[373592516,1753055484159,-782.64,0.00019397,2]
[373592517,1753055484169,-2641.11,0.00019397,2]
[373592518,1753055484179,-480.0,0.00019397,2]
[373592519,1753055484190,-480.0,0.00019397,2]
[373592520,1753055484201,-1494.6,0.00019397,2]
[373592521,1753055484211,-480.0,0.00019397,2]
[373592522,1753055484222,-480.0,0.00019397,2]
[373592523,1753055484232,-480.0,0.00019397,2]
[373592524,1753055484243,-583.6492838,0.00019397,2]
[373592525,1753055484252,-3435.49,0.00019397,2]
[373592526,1753055484262,-480.0,0.00019397,2]
[373592527,1753055484272,-480.0,0.00019397,2]
[373592528,1753055484282,-1042.19,0.00019397,2]
[373592529,1753055484291,-480.0,0.00019397,2]
[373592530,1753055484302,-480.0,0.00019397,2]
[373592531,1753055484312,-480.0,0.00019397,2]
[373592532,1753055484324,-7599.96,0.00019397,2]
[373592533,1753055484335,-4006.2,0.00019397,2]
[373592534,1753055484345,-480.0,0.00019397,2]
[373592535,1753055484356,-480.0,0.00019397,2]
[373592536,1753055484367,-1853.45,0.00019397,2]
[373592537,1753055484377,-480.0,0.00019397,2]
[373592538,1753055484390,-802.61,0.00019397,2]
[373592539,1753055484400,-2737.81,0.00019397,2]
[373592540,1753055484410,-1428.49,0.00019397,2]